fUST/lending_fUST_20240203
["ID","MTS","AMOUNT","RATE_DAILY","PERIOD"]
[313197160,1706920241841,-3288.62,0.00027945,2]
[313197161,1706920241850,-500.0,0.00027945,2]
[313197162,1706920241859,-500.0,0.00027945,2]
[313197163,1706920241869,-680.57,0.00027945,2]
[313197164,1706920241878,-2129.9,0.00027945,2]
[313197165,1706920241887,-500.0,0.00027945,2]
[313197166,1706920241896,-500.0,0.00027945,2]
[313197167,1706920241904,-799.11,0.00027945,2]
[313197168,1706920241914,-500.0,0.00027945,2]
[313197169,1706920241923,-500.0,0.00027945,2]
[313197170,1706920241931,-1200.83,0.00027945,2]
[313197171,1706920241940,-276.1425346,0.00027945,2]
[313197315,1706921431907,-1239.76213603,0.00024358,2]
[313197316,1706921431916,-5719.63629866,0.00024358,2]
[313197317,1706921431925,-4011.06970738,0.00024358,2]
[313197318,1706921431937,-2108.45147399,0.00024358,2]
[313197356,1706921438049,-692.85730778,0.00024358,2]
[313197357,1706921438060,-359.64905985,0.00024358,2]
[313197358,1706921438109,-19882.2963055,0.00024358,2]
[313197359,1706921438118,-4687.79261008,0.00024358,2]
[313197360,1706921438128,-2002.65178594,0.00025845,2]
[313197361,1706921438137,-155.03255684,0.00026135,4]
[313197362,1706921438146,-867.59741421,0.00027297,2]
[313197363,1706921438154,-1058.89,0.00027387,3]
[313197364,1706921438164,-1813.21,0.00027387,3]
[313197366,1706921438173,-1511.0,0.00027387,3]
[313197368,1706921438182,-503.33303702,0.00027397,2]
[313197370,1706921438191,-500.0,0.00027397,2]
[313197371,1706921438200,-500.0,0.00027397,2]
[313197373,1706921438210,-261.5654487,0.00027397,2]
[313197375,1706921438219,-267.68334725,0.00027397,2]
[313197377,1706921438228,-500.0,0.00027397,2]
[313197379,1706921438237,-500.0,0.00027397,2]
[313197380,1706921438246,-500.0,0.00027397,2]
[313197381,1706921438362,-500.0,0.00027397,2]
[313197382,1706921438377,-500.0,0.00027397,2]
[313197383,1706921438386,-500.0,0.00027397,2]
[313197384,1706921438396,-500.0,0.00027397,2]
[313197385,1706921438405,-500.0,0.00027397,2]
[313197386,1706921438415,-517.55,0.00027397,2]
[313197387,1706921438424,-500.0,0.00027397,2]
[313197388,1706921438433,-500.0,0.00027397,2]
[313197389,1706921438442,-500.0,0.00027397,2]
[313197390,1706921438451,-500.0,0.00027397,2]
[313197391,1706921438461,-500.0,0.00027397,2]
[313197392,1706921438472,-500.0,0.00027397,2]
[313197393,1706921438482,-500.0,0.00027397,2]
[313197394,1706921438492,-500.0,0.00027397,7]
[313197395,1706921438501,-500.0,0.00027397,2]
[313197396,1706921438510,-500.0,0.00027397,2]
[313197397,1706921438519,-500.0,0.00027397,2]
[313197398,1706921438529,-500.20705809,0.00027397,2]
[313197399,1706921438538,-500.0,0.00027397,2]
[313197400,1706921438548,-500.0,0.00027397,2]
[313197401,1706921438557,-500.0,0.00027397,2]
[313197402,1706921438567,-500.0,0.00027397,2]
[313197403,1706921438577,-180.27461566,0.00027397,2]
[313197404,1706921438586,-500.0,0.00027397,2]
[313197405,1706921438595,-500.0,0.00027397,2]
[313197406,1706921438604,-500.0,0.00027397,2]
[313197407,1706921438614,-500.0,0.00027397,2]
[313197408,1706921438623,-626.6242037,0.00027397,2]
[313197409,1706921438632,-500.0,0.00027397,2]
[313197410,1706921438642,-500.0,0.00027397,2]
[313197411,1706921438652,-500.0,0.00027397,2]
[313197412,1706921438662,-879.74,0.00027397,2]
[313197413,1706921438672,-500.0,0.00027397,2]
[313197414,1706921438681,-500.0,0.00027397,2]
[313197415,1706921438690,-190.90635508,0.00027397,2]
[313197416,1706921438700,-500.0,0.00027397,2]
[313197417,1706921438709,-500.0,0.00027397,2]
[313197418,1706921438718,-500.0,0.00027397,2]
[313197419,1706921438727,-500.0,0.00027397,2]
[313197420,1706921438737,-500.0,0.00027397,2]
[313197421,1706921438746,-500.0,0.00027397,2]
[313197422,1706921438755,-500.0,0.00027397,2]
[313197423,1706921438765,-500.0,0.00027397,2]
[313197424,1706921438774,-595.5,0.00027397,2]
[313197425,1706921438783,-500.0,0.00027397,2]
[313197426,1706921438792,-500.0,0.00027397,2]
[313197427,1706921438802,-500.0,0.00027397,2]
[313197428,1706921438811,-500.0,0.00027397,2]
[313197429,1706921438820,-1863.67,0.00027397,2]
[313197430,1706921438830,-500.0,0.00027397,2]
[313197431,1706921438839,-500.0,0.00027397,2]
[313197432,1706921438848,-1560.24,0.00027397,8]
[313197433,1706921438857,-500.0,0.00027397,2]
[313197434,1706921438867,-500.0,0.00027397,2]
[313197435,1706921438876,-762.45,0.00027397,2]
[313197436,1706921438888,-500.0,0.00027397,2]
[313197437,1706921438897,-1120.87,0.00027397,2]
[313197438,1706921438907,-500.0,0.00027397,2]
[313197439,1706921438916,-649.4,0.00027397,2]
[313197440,1706921438925,-1000.0,0.00027397,2]
[313197441,1706921438934,-500.0,0.00027397,2]
[313197442,1706921438943,-500.0,0.00027397,2]
[313197443,1706921438952,-500.0,0.00027397,2]
[313197444,1706921438961,-580.34,0.00027397,2]
[313197445,1706921438971,-3143.24,0.00027397,2]
[313197446,1706921438981,-500.0,0.00027397,2]
[313197447,1706921438990,-500.0,0.00027397,2]
[313197448,1706921439000,-500.0,0.00027397,2]
[313197449,1706921439009,-500.0,0.00027397,2]
[313197450,1706921439019,-500.0,0.00027397,2]
[313197451,1706921439028,-155.5725508,0.00027669,2]
[313197452,1706921439037,-599.55843528,0.00027669,2]
[313197453,1706921439046,-588.66135509,0.00027669,2]
[313197454,1706921439055,-500.0,0.00027669,2]
[313197455,1706921439064,-508.35909412,0.00027669,2]
[313197456,1706921439074,-500.0,0.00027669,2]
[313197457,1706921439083,-500.0,0.00027669,2]
[313197458,1706921439092,-500.0,0.00027669,2]
[313197459,1706921439101,-500.0,0.00027669,2]
[313197460,1706921439111,-500.0,0.00027669,2]
[313197461,1706921439120,-500.0,0.00027669,2]
[313197462,1706921439130,-500.0,0.00027669,2]
[313197463,1706921439139,-500.0,0.00027669,2]
[313197464,1706921439148,-500.0,0.00027669,2]
[313197465,1706921439157,-512.14,0.00027669,2]
[313197466,1706921439167,-500.0,0.00027669,2]
[313197467,1706921439177,-500.0,0.00027669,2]
[313197468,1706921439187,-500.0,0.00027669,2]
[313197469,1706921439196,-395.98984785,0.00027669,2]
[313197470,1706921439205,-500.0,0.00027669,2]
[313197471,1706921439215,-500.0,0.00027669,2]
[313197472,1706921439225,-777.35,0.00027669,2]
[313197473,1706921439234,-1817.55,0.00027669,2]
[313197474,1706921439243,-2877.54,0.00027669,2]
[313197475,1706921439253,-500.0,0.00027669,2]
[313197476,1706921439261,-699.22,0.00027669,2]
[313197477,1706921439270,-500.0,0.00027669,2]
[313197478,1706921439280,-500.0,0.00027669,2]
[313197479,1706921439289,-501.48964606,0.00027669,2]
[313197480,1706921439299,-500.0,0.0002767,2]
[313197481,1706921439308,-500.0,0.00027671,2]
[313197482,1706921439317,-500.0,0.00027671,2]
[313197483,1706921439327,-879.74,0.00027671,2]
[313197485,1706921439337,-500.0,0.00027671,2]
[313197486,1706921439346,-500.0,0.00027671,2]
[313197487,1706921439355,-500.0,0.00027671,2]
[313197488,1706921439364,-511.87698769,0.00027671,2]
[313197489,1706921439377,-83.62301231,0.00027671,2]
[313197490,1706921439386,-1863.67,0.00027671,2]
[313197491,1706921439396,-500.0,0.00027671,2]
[313197492,1706921439405,-500.0,0.00027671,2]
[313197493,1706921439414,-1560.24,0.00027671,8]
[313197494,1706921439424,-500.0,0.00027671,2]
[313197495,1706921439434,-762.45,0.00027671,2]
[313197496,1706921439444,-1120.87,0.00027671,2]
[313197497,1706921439457,-500.0,0.00027671,2]
[313197498,1706921439471,-649.4,0.00027671,2]
[313197499,1706921439484,-500.0,0.00027671,2]
[313197500,1706921439498,-580.34,0.00027671,2]
[313197501,1706921439511,-3143.24,0.00027671,2]
[313197502,1706921439524,-500.0,0.00027671,2]
[313197503,1706921439535,-500.0,0.00027671,2]
[313197504,1706921439546,-500.0,0.00027671,2]
[313197505,1706921439557,-153.0,0.00027671,2]
[313197506,1706921439569,-153.0,0.000277,2]
[313197507,1706921439582,-153.0,0.000277,2]
[313197508,1706921439593,-867.59741418,0.00027707,2]
[313197509,1706921439606,-500.0,0.00027943,2]
[313197510,1706921439618,-500.0,0.00027943,2]
[313197511,1706921439630,-500.0,0.00027943,2]
[313197512,1706921439643,-777.35,0.00027943,2]
[313197513,1706921439655,-1817.55,0.00027943,2]
[313197514,1706921439667,-2877.54,0.00027943,2]
[313197515,1706921439679,-522.77418586,0.00027943,2]
[313197516,1706921439691,-699.22,0.00027943,2]
[313197517,1706921439701,-500.0,0.00027943,2]
[313197518,1706921439711,-351.61665144,0.00027944,2]
[313197519,1706921439721,-765.40311766,0.00027945,2]
[313197520,1706921439732,-500.0,0.00027945,2]
[313197521,1706921439744,-500.0,0.00027945,2]
[313197522,1706921439755,-879.74,0.00027945,2]
[313197523,1706921439766,-500.0,0.00027945,2]
[313197524,1706921439777,-500.0,0.00027945,2]
[313197525,1706921439788,-500.0,0.00027945,2]
[313197526,1706921439800,-595.5,0.00027945,2]
[313197527,1706921439811,-1863.67,0.00027945,2]
[313197528,1706921439822,-500.0,0.00027945,2]
[313197529,1706921439835,-500.0,0.00027945,2]
[313197530,1706921439846,-1560.24,0.00027945,8]
[313197531,1706921439858,-500.0,0.00027945,2]
[313197532,1706921439870,-762.45,0.00027945,2]
[313197533,1706921439880,-1120.87,0.00027945,2]
[313197534,1706921439890,-500.0,0.00027945,2]
[313197535,1706921439900,-649.4,0.00027945,2]
[313197536,1706921439910,-500.0,0.00027945,2]
[313197537,1706921439923,-580.34,0.00027945,2]
[313197538,1706921439935,-3143.24,0.00027945,2]
[313197539,1706921439946,-500.0,0.00027945,2]
[313197540,1706921439956,-500.0,0.00027945,2]
[313197542,1706921439967,-500.0,0.00027945,2]
[313197544,1706921439979,-424.05825412,0.00028,3]
[313197546,1706921439990,-867.59741418,0.00028117,2]
[313197547,1706921440001,-5000.0,0.00028119,5]
[313197548,1706921440011,-500.0,0.00028216,2]
[313197549,1706921440022,-500.0,0.00028217,2]
[313197550,1706921440033,-500.0,0.00028217,2]
[313197551,1706921440043,-476.2897541,0.00028217,2]
[313197552,1706921440053,-777.35,0.00028217,2]
[313197553,1706921440064,-1817.55,0.00028217,2]
[313197554,1706921440076,-2877.54,0.00028217,2]
[313197555,1706921440087,-699.22,0.00028217,2]
[313197556,1706921440100,-262.95,0.00028217,2]
[313197557,1706921440111,-2712.73724692,0.00028218,5]
[313197558,1706921440122,-500.0,0.00028219,2]
[313197559,1706921440134,-500.0,0.00028219,2]
[313197560,1706921440145,-879.74,0.00028219,2]
[313197561,1706921440158,-500.0,0.00028219,2]
[313197562,1706921440169,-500.0,0.00028219,2]
[313197563,1706921440181,-500.0,0.00028219,2]
[313197564,1706921440192,-595.5,0.00028219,2]
[313197565,1706921440202,-1863.67,0.00028219,2]
[313197566,1706921440212,-500.0,0.00028219,2]
[313197567,1706921440221,-500.0,0.00028219,2]
[313197568,1706921440232,-1560.24,0.00028219,8]
[313197569,1706921440242,-500.0,0.00028219,2]
[313197571,1706921440252,-762.45,0.00028219,2]
[313197572,1706921440263,-1120.87,0.00028219,2]
[313197573,1706921440273,-500.0,0.00028219,2]
[313197574,1706921440285,-649.4,0.00028219,2]
[313197575,1706921440295,-500.0,0.00028219,2]
[313197576,1706921440306,-580.34,0.00028219,2]
[313197577,1706921440317,-3143.24,0.00028219,2]
[313197578,1706921440328,-500.0,0.00028219,2]
[313197579,1706921440339,-500.0,0.00028219,2]
[313197580,1706921440350,-500.0,0.00028219,2]
[313197581,1706921440360,-500.0,0.00028491,2]
[313197582,1706921440370,-500.0,0.00028491,2]
[313197583,1706921440379,-777.35,0.00028491,2]
[313197584,1706921440389,-1817.55,0.00028491,2]
[313197585,1706921440399,-2877.54,0.00028491,2]
[313197586,1706921440408,-699.22,0.00028491,2]
[313197587,1706921440418,-500.0,0.00028492,2]
[313197588,1706921440429,-500.0,0.00028493,2]
[313197589,1706921440439,-500.0,0.00028493,2]
[313197590,1706921440450,-879.74,0.00028493,2]
[313197591,1706921440459,-500.0,0.00028493,2]
[313197592,1706921440470,-500.0,0.00028493,2]
[313197593,1706921440483,-500.0,0.00028493,2]
[313197594,1706921440494,-595.5,0.00028493,2]
[313197595,1706921440504,-1863.67,0.00028493,2]
[313197596,1706921440515,-500.0,0.00028493,2]
[313197597,1706921440525,-500.0,0.00028493,2]
[313197598,1706921440535,-1560.24,0.00028493,8]
[313197599,1706921440545,-500.0,0.00028493,2]
[313197600,1706921440556,-762.45,0.00028493,2]
[313197601,1706921440567,-1120.87,0.00028493,2]
[313197602,1706921440578,-500.0,0.00028493,2]
[313197603,1706921440588,-649.4,0.00028493,2]
[313197604,1706921440598,-500.0,0.00028493,2]
[313197605,1706921440609,-580.34,0.00028493,2]
[313197606,1706921440619,-3143.24,0.00028493,2]
[313197607,1706921440629,-500.0,0.00028493,2]
[313197608,1706921440640,-500.0,0.00028493,2]
[313197609,1706921440650,-500.0,0.00028493,2]
[313197610,1706921440662,-867.59741418,0.00028526,2]
[313197611,1706921440672,-5000.0,0.00028587,5]
[313197612,1706921440682,-500.0,0.00028765,2]
[313197613,1706921440693,-500.0,0.00028765,2]
[313197614,1706921440703,-777.35,0.00028765,2]
[313197615,1706921440713,-1817.55,0.00028765,2]
[313197616,1706921440724,-2877.54,0.00028765,2]
[313197617,1706921440820,-699.22,0.00028765,2]
[313197618,1706921440856,-500.0,0.00028767,2]
[313197619,1706921440865,-500.0,0.00028767,2]
[313197620,1706921440875,-879.74,0.00028767,2]
[313197621,1706921440884,-500.0,0.00028767,2]
[313197622,1706921440893,-500.0,0.00028767,2]
[313197623,1706921440902,-500.0,0.00028767,2]
[313197624,1706921440911,-595.5,0.00028767,2]
[313197625,1706921440921,-1863.67,0.00028767,2]
[313197626,1706921440930,-362.53,0.00028767,2]
[313197627,1706921440939,-500.0,0.00028767,2]
[313197628,1706921440949,-1560.24,0.00028767,8]
[313197629,1706921440958,-500.0,0.00028767,2]
[313197630,1706921440969,-762.45,0.00028767,2]
[313197631,1706921440979,-1120.87,0.00028767,2]
[313197632,1706921440988,-500.0,0.00028767,2]
[313197633,1706921440999,-649.4,0.00028767,2]
[313197634,1706921441009,-500.0,0.00028767,2]
[313197635,1706921441018,-580.34,0.00028767,2]
[313197636,1706921441027,-3143.24,0.00028767,2]
[313197637,1706921441036,-500.0,0.00028767,2]
[313197638,1706921441045,-500.0,0.00028767,2]
[313197639,1706921441053,-500.0,0.00028767,2]
[313197640,1706921441062,-500.0,0.00028799,2]
[313197641,1706921441071,-22538.5362242,0.000288,4]
[313197642,1706921441080,-622.03882238,0.00028881,2]
[313197643,1706921441089,-867.59741418,0.00028936,2]
[313197644,1706921441099,-500.0,0.00028999,2]
[313197645,1706921441108,-500.0,0.00028999,2]
[313197646,1706921441119,-155.02015262,0.00029,2]
[313197647,1706921441128,-257.31775828,0.00029,2]
[313197648,1706921441139,-70094.40089923,0.00029,2]
[313197649,1706921441148,-500.0,0.00029036,2]
[313197650,1706921441158,-500.0,0.00029036,2]
[313197651,1706921441167,-500.0,0.00029036,2]
[313197652,1706921441176,-500.0,0.00029036,2]
[313197653,1706921441185,-500.0,0.00029036,2]
[313197654,1706921441195,-561.51084821,0.00029036,2]
[313197655,1706921441204,-500.0,0.00029036,2]
[313197656,1706921441214,-246.39248293,0.00029036,2]
[313197657,1706921441223,-448.25469186,0.00029036,2]
[313197658,1706921441232,-235144.43788976,0.00029037,20]
[313197659,1706921441258,-917.499925,0.00027387,3]
[313197660,1706921441269,-341.670075,0.00027387,3]
[313197661,1706921441277,-162.7485093,0.00029037,20]
[313197662,1706921441289,-44812.90703245,0.00029037,20]
[313197762,1706922632083,-371.92864081,0.00024405,2]
[313197764,1706922632092,-357.47726867,0.00024405,2]
[313197767,1706922632112,-5847.3829975,0.00024427,2]
[313197769,1706922632123,-9018.1079515,0.00024428,2]
[313197771,1706922632133,-24900.0,0.00026421,2]
[313197773,1706922632142,-1738.91704009,0.00026937,2]
[313197775,1706922632152,-500.0,0.00027397,2]
[313197777,1706922632162,-500.0,0.00027397,2]
[313197779,1706922632172,-2572.46,0.00027397,2]
[313197781,1706922632182,-500.0,0.00027397,2]
[313197783,1706922632191,-717.56,0.00027397,2]
[313197785,1706922632200,-500.0,0.00027397,2]
[313197788,1706922632210,-500.0,0.00027397,2]
[313197790,1706922632220,-500.0,0.00027397,2]
[313197791,1706922632230,-500.0,0.00027397,2]
[313197793,1706922632241,-1619.03,0.00027397,2]
[313197796,1706922632250,-500.0,0.00027397,2]
[313197798,1706922632259,-500.0,0.00027397,2]
[313197800,1706922632268,-500.0,0.00027397,2]
[313197802,1706922632276,-619.15,0.00027397,2]
[313197804,1706922632286,-523.65,0.00027397,2]
[313197806,1706922632295,-500.0,0.00027397,2]
[313197807,1706922632304,-270.8136147,0.00027397,2]
[313197810,1706922632317,-229.1863853,0.00027397,2]
[313197812,1706922632326,-907.53,0.00027397,2]
[313197814,1706922632335,-500.0,0.00027397,2]
[313197816,1706922632345,-2000.0,0.000274,4]
[313197818,1706922632354,-3000.0,0.000274,4]
[313197820,1706922632363,-299.10602869,0.0002745,2]
[313197822,1706922632373,-2000.0,0.0002755,4]
[313197824,1706922632382,-659.71,0.0002766,3]
[313197826,1706922632392,-1129.66,0.0002766,3]
[313197828,1706922632401,-941.38,0.0002766,3]
[313197830,1706922632411,-1170.18,0.0002767,8]
[313197832,1706922632420,-500.0,0.0002767,2]
[313197834,1706922632430,-500.0,0.0002767,2]
[313197836,1706922632439,-500.0,0.0002767,2]
[313197838,1706922632448,-211.54509625,0.0002767,2]
[313197919,1706922638309,-500.0,0.00027397,2]
[313197920,1706922638319,-2647.03,0.00027397,2]
[313197923,1706922638329,-427.03490375,0.0002767,2]
[313197926,1706922638338,-1562.02,0.0002767,2]
[313197929,1706922638349,-2478.18,0.0002767,2]
[313197931,1706922638358,-578.3,0.0002767,2]
[313197933,1706922638368,-562.53342037,0.0002767,2]
[313197935,1706922638377,-500.0,0.00027671,2]
[313197937,1706922638385,-500.0,0.00027671,2]
[313197938,1706922638395,-500.0,0.00027671,2]
[313197939,1706922638404,-717.56,0.00027671,2]
[313197940,1706922638413,-500.0,0.00027671,2]
[313197941,1706922638422,-500.0,0.00027671,2]
[313197942,1706922638430,-500.0,0.00027671,2]
[313197943,1706922638439,-500.0,0.00027671,2]
[313197944,1706922638449,-1619.03,0.00027671,2]
[313197945,1706922638457,-500.0,0.00027671,2]
[313197946,1706922638466,-500.0,0.00027671,2]
[313197947,1706922638476,-500.0,0.00027671,2]
[313197948,1706922638485,-619.15,0.00027671,2]
[313197949,1706922638493,-523.65,0.00027671,2]
[313197950,1706922638502,-500.0,0.00027671,2]
[313197951,1706922638511,-500.0,0.00027671,2]
[313197952,1706922638520,-907.53,0.00027671,2]
[313197953,1706922638528,-500.0,0.00027671,2]
[313197954,1706922638537,-500.0,0.00027671,2]
[313197955,1706922638546,-241.07678188,0.000279,4]
[313197956,1706922638557,-894.41810646,0.000279,4]
[313197961,1706922641285,-2647.03,0.00027671,2]
[313197962,1706922641294,-1864.50511166,0.000279,4]
[313197963,1706922641303,-3000.0,0.000279,4]
[313197964,1706922641312,-1170.18,0.00027944,8]
[313197965,1706922641322,-500.0,0.00027944,2]
[313197966,1706922641331,-500.0,0.00027944,2]
[313197967,1706922641340,-638.58,0.00027944,2]
[313197968,1706922641350,-1562.02,0.00027944,2]
[313197969,1706922641359,-2478.18,0.00027944,2]
[313197970,1706922641368,-578.3,0.00027944,2]
[313197971,1706922641379,-500.0,0.00027945,2]
[313197972,1706922641388,-500.0,0.00027945,2]
[313197973,1706922641398,-540.14431584,0.00027945,2]
[313197974,1706922641407,-717.56,0.00027945,2]
[313197975,1706922641416,-500.0,0.00027945,2]
[313197976,1706922641425,-500.0,0.00027945,2]
[313197977,1706922641434,-500.0,0.00027945,2]
[313197978,1706922641443,-500.0,0.00027945,2]
[313197979,1706922641453,-1619.03,0.00027945,2]
[313197980,1706922641462,-500.0,0.00027945,2]
[313197981,1706922641471,-500.0,0.00027945,2]
[313197982,1706922641480,-619.15,0.00027945,2]
[313197983,1706922641489,-523.65,0.00027945,2]
[313197984,1706922641498,-500.0,0.00027945,2]
[313197985,1706922641507,-500.0,0.00027945,2]
[313197986,1706922641516,-164.47743655,0.00027945,2]
[313198025,1706922643163,-539.95540184,0.00027945,2]
[313198036,1706922646208,-423.91799147,0.00027944,2]
[313198037,1706922646262,-4014.23089015,0.00027944,2]
[313198038,1706922646271,-203.09716161,0.00027945,2]
[313198039,1706922646280,-500.0,0.00027945,2]
[313198040,1706922646289,-500.0,0.00027945,2]
[313198041,1706922646298,-2647.03,0.00027945,2]
[313198042,1706922646307,-3000.0,0.0002795,4]
[313198043,1706922646316,-784.49,0.0002799,3]
[313198044,1706922646325,-3797.75262217,0.00028,2]
[313198070,1706923822162,155.3135587,0.00028,60]
[313198146,1706923846391,-3036.09885897,0.00024474,2]
[313198147,1706923846400,-1158.42539732,0.00025,2]
[313198148,1706923846409,-155.28771371,0.00025198,2]
[313198149,1706923846419,-155.23374398,0.000252,2]
[313198150,1706923846429,-1428.48859303,0.00025845,2]
[313198151,1706923846438,-3000.0,0.000275,4]
[313198152,1706923846447,-153.0,0.000277,2]
[313198153,1706923846456,-200.16373084,0.00027845,9]
[313198154,1706923846465,-155.22847241,0.00027858,2]
[313198155,1706923846474,-306.0,0.000279,2]
[313198156,1706923846484,-153.0,0.000279,2]
[313198157,1706923846493,-450.787463,0.000279,2]
[313198158,1706923846502,-399.3134028,0.000279,2]
[313198159,1706923846511,-35.73744378,0.000279,2]
[313198171,1706923848650,-277.64890062,0.000279,2]
[313198172,1706923848660,-153.1918087,0.000279,2]
[313198173,1706923848670,-239.28482296,0.000279,2]
[313198174,1706923848679,-90.99432266,0.000279,2]
[313198206,1706924198992,159.9116778,0.00027397,120]
[313198253,1706925032418,-639.85213328,0.00024433,2]
[313198255,1706925032428,-155.0341075,0.00024434,2]
[313198257,1706925032437,-155.0341075,0.00024435,2]
[313198259,1706925032446,-1156.1712863,0.00024461,5]
[313198595,1706925039587,-3843.8287137,0.00024461,5]
[313198597,1706925039597,-2380.66028287,0.00024479,2]
[313198599,1706925039606,-721.75849431,0.00024485,2]
[313198601,1706925039615,-486.99332228,0.00024509,2]
[313198603,1706925039624,-176.15460906,0.00024509,2]
[313198605,1706925039634,-772.28359821,0.00025796,2]
[313198606,1706925039643,-207.2698236,0.00025797,2]
[313198607,1706925039653,-1135.00097507,0.000258,2]
[313198608,1706925039665,-306.3485963,0.00027178,2]
[313198609,1706925039676,-178.3821093,0.00027178,2]
[313198610,1706925039686,-203.5046582,0.000272,2]
[313198611,1706925039695,-153.0,0.000272,2]
[313198612,1706925039705,-765.43990857,0.00027397,2]
[313198613,1706925039714,-156.4587843,0.000274,2]
[313198614,1706925039723,-153.0,0.000274,2]
[313198615,1706925039732,-3000.0,0.000275,4]
[313198616,1706925039742,-153.0,0.00027671,2]
[313198617,1706925039752,-199.6991802,0.00027671,2]
[313198618,1706925039762,-153.0,0.00027671,2]
[313198619,1706925039771,-153.0,0.00027671,2]
[313198620,1706925039780,-153.0,0.00027671,2]
[313198621,1706925039790,-153.7530833,0.00027671,2]
[313198622,1706925039799,-216.3526192,0.00027671,2]
[313198623,1706925039808,-153.0,0.00027671,2]
[313198624,1706925039817,-153.7187901,0.00027671,2]
[313198625,1706925039826,-199.6991802,0.00027671,2]
[313198626,1706925039835,-154.5696195,0.00027671,2]
[313198627,1706925039845,-153.0,0.000279,2]
[313198628,1706925039854,-153.750409,0.00027945,2]
[313198629,1706925039863,-3148.99,0.0002799,3]
[313198630,1706925039873,-2624.15,0.0002799,3]
[313198631,1706925039881,-2186.8,0.0002799,3]
[313198632,1706925039890,-1822.33,0.0002799,3]
[313198634,1706925039900,-510.7732295,0.00027997,2]
[313198636,1706925039909,-505.96692949,0.00027997,2]
[313198638,1706925039918,-504.90988704,0.00027997,2]
[313198640,1706925039927,-509.33652923,0.00027997,2]
[313198642,1706925039936,-347.58183061,0.00027997,2]
[313198644,1706925039945,-1544.13,0.00027997,2]
[313198646,1706925039954,-526.85103894,0.00027997,2]
[313198648,1706925039963,-1072.79,0.00027997,8]
[313198650,1706925039972,-346.85471175,0.00027997,2]
[313198652,1706925039982,-844.13,0.00027997,2]
[313198653,1706925039990,-500.0,0.00027997,2]
[313198654,1706925040000,-2475.56,0.00027997,2]
[313198655,1706925040009,-505.05363225,0.00027997,2]
[313198656,1706925040019,-513.04111909,0.00027997,2]
[313198657,1706925040029,-155.42958003,0.00027998,2]
[313198658,1706925040038,-155.51272834,0.00027998,2]
[313198659,1706925040047,-155.46575947,0.00027998,2]
[313198660,1706925040056,-500.0,0.00027998,2]
[313198661,1706925040065,-500.0,0.00027998,2]
[313198662,1706925040074,-523.23250072,0.00027998,2]
[313198663,1706925040083,-520.14982265,0.00027998,2]
[313198664,1706925040092,-634.19813754,0.00027998,2]
[313198665,1706925040101,-505.50960231,0.00027998,2]
[313198666,1706925040110,-511.20819384,0.00027998,2]
[313198667,1706925040119,-500.0,0.00027998,2]
[313198668,1706925040128,-500.0,0.00027998,2]
[313198669,1706925040137,-512.7476706,0.00027998,2]
[313198670,1706925040147,-728.89,0.00027998,2]
[313198671,1706925040155,-660.92,0.00027998,2]
[313198672,1706925040165,-500.0,0.00027998,2]